[Event "Late-Titled-Tuesday-Blitz-March-12-2024"]
[Site "Chess.com"]
[Date "2024.03.12"]
[Round "8"]
[White "The_Machine04"]
[Black "Slovak_fighter2000"]
[Result "1-0"]
[WhiteElo "2819"]
[BlackElo "2622"]
[TimeControl "180+1"]
[EndTime "15:25:17 PDT"]
[Termination "The_Machine04 won by resignation"]

1. d4 {[%clk 0:03:00.9]} 1... Nf6 {[%clk 0:02:59.8]} 2. Nf3 {[%clk 0:02:59.6]}
2... d5 {[%clk 0:02:59.7]} 3. e3 {[%clk 0:02:59.6]} 3... Bg4 {[%clk 0:02:59.1]}
4. h3 {[%clk 0:02:59.4]} 4... Bh5 {[%clk 0:02:57.9]} 5. g4 {[%clk 0:02:59.8]}
5... Bg6 {[%clk 0:02:58]} 6. Ne5 {[%clk 0:03:00.7]} 6... Nfd7 {[%clk 0:02:55.6]}
7. Nxg6 {[%clk 0:03:00.3]} 7... hxg6 {[%clk 0:02:55.7]} 8. Bg2 {[%clk
0:03:01.2]} 8... c6 {[%clk 0:02:54.3]} 9. Nd2 {[%clk 0:03:00.7]} 9... e5 {[%clk
0:02:53]} 10. e4 {[%clk 0:03:01.1]} 10... dxe4 {[%clk 0:02:35.5]} 11. Nxe4
{[%clk 0:03:02]} 11... Be7 {[%clk 0:02:26.8]} 12. dxe5 {[%clk 0:02:53]} 12...
Nxe5 {[%clk 0:02:27.7]} 13. Qxd8+ {[%clk 0:02:52.8]} 13... Kxd8 {[%clk
0:02:27.2]} 14. Bf4 {[%clk 0:02:53.2]} 14... Nbd7 {[%clk 0:02:25.7]} 15. O-O-O
{[%clk 0:02:52.8]} 15... f6 {[%clk 0:02:17.1]} 16. Ng5 {[%clk 0:02:25.4]} 16...
fxg5 {[%clk 0:02:02.2]} 17. Bxe5 {[%clk 0:02:24.1]} 17... Bf6 {[%clk 0:02:00]}
18. Bd6 {[%clk 0:02:21.6]} 18... Re8 {[%clk 0:01:58.3]} 19. Rhe1 {[%clk
0:02:16]} 19... Rxe1 {[%clk 0:01:57.2]} 20. Rxe1 {[%clk 0:02:16.9]} 20... a5
{[%clk 0:01:51.4]} 21. Be4 {[%clk 0:02:08.7]} 21... Ne5 {[%clk 0:01:41.4]} 22.
Rd1 {[%clk 0:01:40.4]} 22... Ke8 {[%clk 0:01:32.9]} 23. Bc7 {[%clk 0:01:18.3]}
23... Ke7 {[%clk 0:01:18.7]} 24. a4 {[%clk 0:01:13.2]} 24... Rh8 {[%clk
0:01:12.5]} 25. Bg2 {[%clk 0:01:06.7]} 25... Ra8 {[%clk 0:01:10.9]} 26. Re1
{[%clk 0:01:00.8]} 26... Ke6 {[%clk 0:01:11.1]} 27. h4 {[%clk 0:01:00.3]} 27...
Re8 {[%clk 0:01:04.1]} 28. hxg5 {[%clk 0:00:58.2]} 28... Bxg5+ {[%clk
0:01:03.6]} 29. Kb1 {[%clk 0:00:55.2]} 29... Bf4 {[%clk 0:00:58.8]} 30. Bxe5
{[%clk 0:00:48.2]} 30... Bxe5 {[%clk 0:00:58.4]} 31. f4 {[%clk 0:00:47.5]} 1-0

[Event "Late-Titled-Tuesday-Blitz-March-12-2024"]
[Site "Chess.com"]
[Date "2024.03.12"]
[Round "8"]
[White "Shahdad2007"]
[Black "AlexandreHouhou"]
[Result "1-0"]
[WhiteElo "2583"]
[BlackElo "2357"]
[TimeControl "180+1"]
[EndTime "15:25:17 PDT"]
[Termination "Shahdad2007 won by resignation"]

1. Nf3 {[%clk 0:03:00.9]} 1... d5 {[%clk 0:02:59.7]} 2. c4 {[%clk 0:03:01]} 2...
c6 {[%clk 0:02:56.5]} 3. e3 {[%clk 0:02:58.1]} 3... Nf6 {[%clk 0:02:55.5]} 4.
Nc3 {[%clk 0:02:58.3]} 4... e6 {[%clk 0:02:52.7]} 5. d4 {[%clk 0:02:57.8]} 5...
Nbd7 {[%clk 0:02:51.2]} 6. Be2 {[%clk 0:02:55.2]} 6... Bd6 {[%clk 0:02:50.3]} 7.
O-O {[%clk 0:02:55.2]} 7... O-O {[%clk 0:02:50.3]} 8. b3 {[%clk 0:02:55.9]} 8...
Qe7 {[%clk 0:02:49.5]} 9. Bb2 {[%clk 0:02:56.5]} 9... e5 {[%clk 0:02:49.8]} 10.
dxe5 {[%clk 0:02:56.9]} 10... Nxe5 {[%clk 0:02:50.4]} 11. cxd5 {[%clk
0:02:57.3]} 11... Rd8 {[%clk 0:02:23.7]} 12. h3 {[%clk 0:02:52.7]} 12... cxd5
{[%clk 0:02:19.1]} 13. Nb5 {[%clk 0:02:52.4]} 13... Bb8 {[%clk 0:02:15.4]} 14.
Rc1 {[%clk 0:02:50.6]} 14... Bf5 {[%clk 0:02:11]} 15. Nfd4 {[%clk 0:02:25.8]}
15... Bg6 {[%clk 0:02:10.2]} 16. Ba3 {[%clk 0:02:20]} 16... Qd7 {[%clk
0:02:02.8]} 17. Nc3 {[%clk 0:02:20]} 17... a6 {[%clk 0:01:56.1]} 18. Na4 {[%clk
0:02:19.9]} 18... Ba7 {[%clk 0:01:48.7]} 19. Nc5 {[%clk 0:02:19.5]} 19... Qe7
{[%clk 0:01:38]} 20. b4 {[%clk 0:02:09.4]} 20... Rac8 {[%clk 0:01:26.1]} 21. Qb3
{[%clk 0:02:02.6]} 21... Ne4 {[%clk 0:01:19.6]} 22. Nxe4 {[%clk 0:02:01.2]}
22... Bxe4 {[%clk 0:01:20.5]} 23. b5 {[%clk 0:02:01.7]} 23... Qg5 {[%clk
0:01:16.5]} 24. f3 {[%clk 0:02:01.7]} 24... Rxc1 {[%clk 0:01:06.6]} 25. Rxc1
{[%clk 0:01:50.5]} 25... Bxd4 {[%clk 0:01:01.2]} 26. exd4 {[%clk 0:01:50.2]}
26... Bf5 {[%clk 0:00:46.9]} 27. f4 {[%clk 0:01:42.2]} 27... Qxf4 {[%clk
0:00:36.6]} 28. dxe5 {[%clk 0:01:41.6]} 28... d4 {[%clk 0:00:31]} 29. Rf1 {[%clk
0:01:37.4]} 29... Qxe5 {[%clk 0:00:30]} 30. Bb2 {[%clk 0:01:25.2]} 30... Bxh3
{[%clk 0:00:21.4]} 31. Qxf7+ {[%clk 0:01:23.7]} 31... Kh8 {[%clk 0:00:19.1]} 32.
Qf8+ {[%clk 0:01:24.6]} 1-0

[Event "Late-Titled-Tuesday-Blitz-March-12-2024"]
[Site "Chess.com"]
[Date "2024.03.12"]
[Round "8"]
[White "Mikasinski"]
[Black "ATM622"]
[Result "1-0"]
[WhiteElo "2659"]
[BlackElo "2486"]
[TimeControl "180+1"]
[EndTime "15:25:18 PDT"]
[Termination "Mikasinski won by resignation"]

1. e4 {[%clk 0:03:00.9]} 1... c6 {[%clk 0:02:59]} 2. d4 {[%clk 0:03:00.8]} 2...
d5 {[%clk 0:02:59.5]} 3. e5 {[%clk 0:03:01.7]} 3... c5 {[%clk 0:02:57.5]} 4.
dxc5 {[%clk 0:03:02.6]} 4... e6 {[%clk 0:02:57.2]} 5. Nf3 {[%clk 0:03:03]} 5...
Bxc5 {[%clk 0:02:57.2]} 6. Bd3 {[%clk 0:03:03.7]} 6... Ne7 {[%clk 0:02:56.5]} 7.
Nbd2 {[%clk 0:03:04.1]} 7... Ng6 {[%clk 0:02:56.8]} 8. Nb3 {[%clk 0:03:04.5]}
8... Bb6 {[%clk 0:02:55.5]} 9. O-O {[%clk 0:03:05.2]} 9... Bc7 {[%clk
0:02:55.9]} 10. Re1 {[%clk 0:03:05.4]} 10... Nc6 {[%clk 0:02:56.4]} 11. Bg5
{[%clk 0:03:05.6]} 11... Nce7 {[%clk 0:02:52.4]} 12. h4 {[%clk 0:03:04.2]} 12...
h6 {[%clk 0:02:48.8]} 13. Bd2 {[%clk 0:02:59.6]} 13... Nf5 {[%clk 0:02:43.5]}
14. Bxf5 {[%clk 0:02:56.5]} 14... exf5 {[%clk 0:02:44.4]} 15. Bb4 {[%clk
0:02:50.1]} 15... Nf4 {[%clk 0:02:36.2]} 16. g3 {[%clk 0:02:38.5]} 16... Nh3+
{[%clk 0:02:25.3]} 17. Kg2 {[%clk 0:02:37]} 17... f4 {[%clk 0:02:25.7]} 18. e6
{[%clk 0:02:34.4]} 18... Bxe6 {[%clk 0:02:18.3]} 19. Nfd4 {[%clk 0:02:32.1]}
19... Nxf2 {[%clk 0:02:14.8]} 20. Nxe6 {[%clk 0:02:22.4]} 20... fxe6 {[%clk
0:02:14.8]} 21. Qh5+ {[%clk 0:02:17.9]} 21... Kd7 {[%clk 0:02:14.6]} 22. Qf7+
{[%clk 0:02:14.9]} 22... Kc8 {[%clk 0:02:11.3]} 23. Qxe6+ {[%clk 0:02:15.3]}
23... Kb8 {[%clk 0:02:11.5]} 24. Kxf2 {[%clk 0:02:15.3]} 24... fxg3+ {[%clk
0:01:56.2]} 25. Kg2 {[%clk 0:02:15.6]} 25... a5 {[%clk 0:01:53.2]} 26. Be7
{[%clk 0:02:14.8]} 26... Qe8 {[%clk 0:01:47.4]} 27. Bd6 {[%clk 0:02:08.3]} 27...
Qc6 {[%clk 0:01:44.8]} 28. Bxc7+ {[%clk 0:02:07.8]} 28... Qxc7 {[%clk
0:01:45.7]} 29. Qe5 {[%clk 0:02:08.3]} 29... a4 {[%clk 0:01:41]} 30. Nc5 {[%clk
0:02:07.5]} 30... Ra5 {[%clk 0:01:35.3]} 31. Qxc7+ {[%clk 0:02:05.8]} 31... Kxc7
{[%clk 0:01:35.4]} 32. Ne6+ {[%clk 0:02:03.8]} 32... Kd6 {[%clk 0:01:35.7]} 33.
Nxg7 {[%clk 0:02:03.9]} 33... d4 {[%clk 0:01:34.4]} 34. Re6+ {[%clk 0:02:03.1]}
34... Kd7 {[%clk 0:01:33.9]} 35. Rf1 {[%clk 0:02:03.7]} 35... Rg8 {[%clk
0:01:31.3]} 36. Rf7+ {[%clk 0:02:04.2]} 36... Kc8 {[%clk 0:01:31.2]} 37. Nf5
{[%clk 0:01:58.3]} 37... Kb8 {[%clk 0:01:22]} 38. Ree7 {[%clk 0:01:54.6]} 38...
Rb5 {[%clk 0:01:20]} 39. Nd6 {[%clk 0:01:53.5]} 39... Rxb2 {[%clk 0:01:19.4]}
40. Rxb7+ {[%clk 0:01:53.8]} 40... Rxb7 {[%clk 0:01:19.9]} 41. Rxb7+ {[%clk
0:01:54.1]} 41... Ka8 {[%clk 0:01:20.8]} 42. Rb4 {[%clk 0:01:53.6]} 42... Rd8
{[%clk 0:01:18.9]} 43. Rxa4+ {[%clk 0:01:53.7]} 43... Kb8 {[%clk 0:01:16.4]} 44.
Rxd4 {[%clk 0:01:54.4]} 44... Rd7 {[%clk 0:01:15]} 45. c4 {[%clk 0:01:54.4]}
45... h5 {[%clk 0:01:13.7]} 46. Kxg3 {[%clk 0:01:54.5]} 46... Rg7+ {[%clk
0:01:13.6]} 47. Kf4 {[%clk 0:01:55.1]} 47... Rg4+ {[%clk 0:01:13.7]} 48. Ke5
{[%clk 0:01:55.2]} 48... Rg1 {[%clk 0:01:14.6]} 49. Ne4 {[%clk 0:01:55.1]} 49...
Rf1 {[%clk 0:01:13.9]} 50. c5 {[%clk 0:01:55]} 50... Kc7 {[%clk 0:01:14]} 51.
Rd6 {[%clk 0:01:54]} 51... Rc1 {[%clk 0:01:13.7]} 52. Rh6 {[%clk 0:01:54]} 52...
Rg1 {[%clk 0:01:13.3]} 53. Rxh5 {[%clk 0:01:54.2]} 53... Kc6 {[%clk 0:01:14.1]}
54. Rh6+ {[%clk 0:01:54.4]} 54... Kc7 {[%clk 0:01:14.6]} 55. a4 {[%clk
0:01:53.5]} 55... Ra1 {[%clk 0:01:14.6]} 56. Ra6 {[%clk 0:01:53.1]} 56... Kb7
{[%clk 0:01:14]} 57. Ra5 {[%clk 0:01:53.7]} 57... Kc6 {[%clk 0:01:14.1]} 58.
Ra6+ {[%clk 0:01:51.3]} 58... Kb7 {[%clk 0:01:13.8]} 59. Rb6+ {[%clk 0:01:51.7]}
59... Kc7 {[%clk 0:01:14.1]} 60. Rb4 {[%clk 0:01:51.5]} 60... Kc6 {[%clk
0:01:14]} 61. h5 {[%clk 0:01:50.4]} 61... Rh1 {[%clk 0:01:14.2]} 62. Nf6 {[%clk
0:01:49.9]} 62... Re1+ {[%clk 0:01:13.6]} 63. Re4 {[%clk 0:01:49.4]} 63... Rh1
{[%clk 0:01:14.5]} 64. Kf5 {[%clk 0:01:49]} 64... Kxc5 {[%clk 0:01:14.7]} 65.
Kg6 {[%clk 0:01:49.1]} 65... Rg1+ {[%clk 0:01:14.9]} 66. Rg4 {[%clk 0:01:49.7]}
66... Rh1 {[%clk 0:01:15.8]} 67. h6 {[%clk 0:01:50]} 67... Kb6 {[%clk
0:01:15.6]} 68. h7 {[%clk 0:01:50]} 68... Rxh7 {[%clk 0:01:15.8]} 69. Kxh7
{[%clk 0:01:49.7]} 1-0

[Event "Late-Titled-Tuesday-Blitz-March-12-2024"]
[Site "Chess.com"]
[Date "2024.03.12"]
[Round "8"]
[White "PawnEatingZombie"]
[Black "Boninknights"]
[Result "1-0"]
[WhiteElo "2123"]
[BlackElo "2394"]
[TimeControl "180+1"]
[EndTime "15:25:18 PDT"]
[Termination "PawnEatingZombie won by resignation"]

1. e4 {[%clk 0:03:00.9]} 1... e5 {[%clk 0:02:58.5]} 2. Nf3 {[%clk 0:03:00.4]}
2... Qe7 {[%clk 0:02:58]} 3. Nc3 {[%clk 0:02:57.8]} 3... c6 {[%clk 0:02:56.9]}
4. Bc4 {[%clk 0:02:47.6]} 4... g6 {[%clk 0:02:55]} 5. a4 {[%clk 0:02:46.9]} 5...
a5 {[%clk 0:02:53.2]} 6. O-O {[%clk 0:02:46]} 6... Bg7 {[%clk 0:02:51.9]} 7. d3
{[%clk 0:02:42.2]} 7... Nf6 {[%clk 0:02:49.9]} 8. Bb3 {[%clk 0:02:36.7]} 8...
O-O {[%clk 0:02:43.1]} 9. Re1 {[%clk 0:02:37.2]} 9... d6 {[%clk 0:02:41.6]} 10.
h3 {[%clk 0:02:36.4]} 10... Nbd7 {[%clk 0:02:38.9]} 11. Ne2 {[%clk 0:01:46.3]}
11... Nc5 {[%clk 0:02:33.4]} 12. c3 {[%clk 0:01:45.6]} 12... Nxb3 {[%clk
0:02:26.2]} 13. Qxb3 {[%clk 0:01:46.5]} 13... Be6 {[%clk 0:02:18.3]} 14. Qc2
{[%clk 0:01:46.1]} 14... h6 {[%clk 0:02:15.1]} 15. c4 {[%clk 0:01:31.6]} 15...
Nd7 {[%clk 0:02:10.3]} 16. b3 {[%clk 0:01:30.9]} 16... f5 {[%clk 0:02:03]} 17.
Bb2 {[%clk 0:01:27.4]} 17... fxe4 {[%clk 0:02:00.4]} 18. dxe4 {[%clk 0:01:27.2]}
18... Bxh3 {[%clk 0:01:51.4]} 19. Ng3 {[%clk 0:01:08.5]} 19... Be6 {[%clk
0:01:43.7]} 20. Rad1 {[%clk 0:01:06.4]} 20... Nc5 {[%clk 0:01:39.1]} 21. Rd2
{[%clk 0:01:02.5]} 21... Bg4 {[%clk 0:01:23.4]} 22. Nh2 {[%clk 0:01:00.8]} 22...
Bc8 {[%clk 0:01:18.6]} 23. Ba3 {[%clk 0:01:00.7]} 23... h5 {[%clk 0:01:15]} 24.
Red1 {[%clk 0:00:56.8]} 24... Rf6 {[%clk 0:01:08.3]} 25. Ngf1 {[%clk 0:00:48.7]}
25... Bh6 {[%clk 0:01:05.3]} 26. Rxd6 {[%clk 0:00:48]} 26... Rxd6 {[%clk
0:01:03.7]} 27. Bxc5 {[%clk 0:00:48.6]} 27... Rd2 {[%clk 0:00:57.6]} 28. Qxd2
{[%clk 0:00:42.6]} 1-0

[Event "Late-Titled-Tuesday-Blitz-March-12-2024"]
[Site "Chess.com"]
[Date "2024.03.12"]
[Round "8"]
[White "Qingdom"]
[Black "katharinareinecke"]
[Result "1-0"]
[WhiteElo "2259"]
[BlackElo "1965"]
[TimeControl "180+1"]
[EndTime "15:25:19 PDT"]
[Termination "Qingdom won by resignation"]

1. d4 {[%clk 0:03:00.9]} 1... d5 {[%clk 0:02:59.3]} 2. c4 {[%clk 0:03:00.3]}
2... c6 {[%clk 0:02:58.6]} 3. Nf3 {[%clk 0:02:58.2]} 3... Nf6 {[%clk 0:02:58.7]}
4. Nc3 {[%clk 0:02:57.9]} 4... e6 {[%clk 0:02:53.9]} 5. Bg5 {[%clk 0:02:56.9]}
5... Be7 {[%clk 0:02:53.8]} 6. e3 {[%clk 0:02:56.8]} 6... O-O {[%clk 0:02:53.1]}
7. Qc2 {[%clk 0:02:56.3]} 7... h6 {[%clk 0:02:51.5]} 8. Bxf6 {[%clk 0:02:55.9]}
8... Bxf6 {[%clk 0:02:50.9]} 9. cxd5 {[%clk 0:02:56.3]} 9... cxd5 {[%clk
0:02:48.9]} 10. Bd3 {[%clk 0:02:55.4]} 10... Nc6 {[%clk 0:02:46.7]} 11. a3
{[%clk 0:02:55]} 11... a6 {[%clk 0:02:40]} 12. O-O {[%clk 0:02:54.8]} 12... b5
{[%clk 0:02:39.3]} 13. Nxb5 {[%clk 0:02:48.2]} 13... axb5 {[%clk 0:02:35.9]} 14.
Qxc6 {[%clk 0:02:48.1]} 14... Bd7 {[%clk 0:02:32.4]} 15. Qc2 {[%clk 0:02:43.8]}
15... Rc8 {[%clk 0:02:27.3]} 16. Qd2 {[%clk 0:02:41.6]} 16... Qb6 {[%clk
0:02:24.7]} 17. Rfc1 {[%clk 0:02:40.1]} 17... Be7 {[%clk 0:02:09.4]} 18. Ne5
{[%clk 0:02:33.9]} 18... Bc6 {[%clk 0:01:50.5]} 19. Nxc6 {[%clk 0:02:15.6]}
19... Rxc6 {[%clk 0:01:48.6]} 20. Rxc6 {[%clk 0:02:15.3]} 20... Qxc6 {[%clk
0:01:48.1]} 21. Rc1 {[%clk 0:02:15.2]} 21... Qb7 {[%clk 0:01:36.4]} 22. b4
{[%clk 0:02:11.9]} 22... Ra8 {[%clk 0:01:20.6]} 23. Rc3 {[%clk 0:02:09.3]} 23...
Ra4 {[%clk 0:01:07.3]} 24. Qc1 {[%clk 0:02:03.2]} 24... g6 {[%clk 0:00:59.1]}
25. Rc7 {[%clk 0:01:58.7]} 25... Qa6 {[%clk 0:00:47.9]} 26. Rxe7 {[%clk
0:01:53.6]} 26... Rxa3 {[%clk 0:00:48.2]} 27. Bxb5 {[%clk 0:01:42.1]} 27... Ra1
{[%clk 0:00:42.9]} 28. Bxa6 {[%clk 0:01:39.2]} 28... Rxc1+ {[%clk 0:00:42.2]}
29. Bf1 {[%clk 0:01:39.1]} 29... Kf8 {[%clk 0:00:41.6]} 30. Ra7 {[%clk
0:01:37.2]} 30... Kg7 {[%clk 0:00:39.1]} 31. b5 {[%clk 0:01:35.4]} 31... Rb1
{[%clk 0:00:38.2]} 32. Rc7 {[%clk 0:01:33]} 32... Kf6 {[%clk 0:00:38.2]} 33. g3
{[%clk 0:01:31.5]} 33... h5 {[%clk 0:00:36.3]} 34. h4 {[%clk 0:01:30.7]} 34...
Kf5 {[%clk 0:00:28.7]} 35. Rxf7+ {[%clk 0:01:28.6]} 35... Kg4 {[%clk 0:00:29]}
36. Kg2 {[%clk 0:01:29]} 36... g5 {[%clk 0:00:25]} 37. Rg7 {[%clk 0:01:27.6]}
37... Kf5 {[%clk 0:00:22.6]} 38. Rxg5+ {[%clk 0:01:26.8]} 1-0

[Event "Late-Titled-Tuesday-Blitz-March-12-2024"]
[Site "Chess.com"]
[Date "2024.03.12"]
[Round "8"]
[White "FairChess_on_YouTube"]
[Black "Angry_Twin"]
[Result "1-0"]
[WhiteElo "3121"]
[BlackElo "2979"]
[TimeControl "180+1"]
[EndTime "15:25:21 PDT"]
[Termination "FairChess_on_YouTube won on time"]

1. d4 {[%clk 0:03:00.9]} 1... d5 {[%clk 0:02:59.9]} 2. c4 {[%clk 0:03:01.2]}
2... c6 {[%clk 0:03:00.4]} 3. Nf3 {[%clk 0:03:01.1]} 3... Nf6 {[%clk 0:03:00.8]}
4. Qc2 {[%clk 0:03:01]} 4... dxc4 {[%clk 0:03:00.5]} 5. e4 {[%clk 0:03:00.3]}
5... b5 {[%clk 0:02:59.4]} 6. b3 {[%clk 0:03:00.6]} 6... cxb3 {[%clk 0:02:59.1]}
7. axb3 {[%clk 0:03:01.5]} 7... e6 {[%clk 0:02:57.7]} 8. Bd3 {[%clk 0:03:01.3]}
8... Be7 {[%clk 0:02:56.5]} 9. O-O {[%clk 0:03:00.8]} 9... h6 {[%clk 0:02:51.8]}
10. Bd2 {[%clk 0:02:51.9]} 10... a5 {[%clk 0:02:51.8]} 11. Nc3 {[%clk
0:02:51.8]} 11... Bb7 {[%clk 0:02:36.3]} 12. e5 {[%clk 0:02:48.4]} 12... Nd5
{[%clk 0:01:42.1]} 13. Nxd5 {[%clk 0:02:48.3]} 13... Qxd5 {[%clk 0:01:38.1]} 14.
Bxa5 {[%clk 0:02:39]} 14... O-O {[%clk 0:01:37.3]} 15. Bh7+ {[%clk 0:02:33]}
15... Kh8 {[%clk 0:01:36.5]} 16. Be4 {[%clk 0:02:33.9]} 16... Qd7 {[%clk
0:01:37]} 17. Bd2 {[%clk 0:02:33.5]} 17... Rxa1 {[%clk 0:01:13.4]} 18. Rxa1
{[%clk 0:02:34.4]} 18... Rc8 {[%clk 0:01:07.5]} 19. Ra7 {[%clk 0:02:27.9]} 19...
Na6 {[%clk 0:01:00.1]} 20. h4 {[%clk 0:02:24]} 20... Nb4 {[%clk 0:00:32.3]} 21.
Qc1 {[%clk 0:02:18.5]} 21... Bf8 {[%clk 0:00:32]} 22. Bxb4 {[%clk 0:02:05.2]}
22... Bxb4 {[%clk 0:00:31.6]} 23. Qf4 {[%clk 0:02:05.8]} 23... Ra8 {[%clk
0:00:23.2]} 24. Rxa8+ {[%clk 0:02:02.5]} 24... Bxa8 {[%clk 0:00:24.1]} 25. g4
{[%clk 0:02:00.2]} 25... Bf8 {[%clk 0:00:17.6]} 26. g5 {[%clk 0:01:58.4]} 26...
Bb7 {[%clk 0:00:17.4]} 27. g6 {[%clk 0:01:53.8]} 27... c5 {[%clk 0:00:05.7]} 28.
Bxb7 {[%clk 0:01:42.4]} 28... Qxb7 {[%clk 0:00:06.6]} 29. Qxf7 {[%clk
0:01:41.5]} 29... Qxf7 {[%clk 0:00:06.3]} 30. gxf7 {[%clk 0:01:42.4]} 30... g6
{[%clk 0:00:06.6]} 31. dxc5 {[%clk 0:01:40.9]} 1-0

[Event "Late-Titled-Tuesday-Blitz-March-12-2024"]
[Site "Chess.com"]
[Date "2024.03.12"]
[Round "8"]
[White "BebeBonito2022"]
[Black "Speed-O-Sonic"]
[Result "0-1"]
[WhiteElo "2302"]
[BlackElo "2453"]
[TimeControl "180+1"]
[EndTime "15:25:21 PDT"]
[Termination "Speed-O-Sonic won by checkmate"]

1. d4 {[%clk 0:03:00.9]} 1... d5 {[%clk 0:02:59.6]} 2. c4 {[%clk 0:03:01.1]}
2... e6 {[%clk 0:02:59.2]} 3. Nc3 {[%clk 0:03:01.4]} 3... c5 {[%clk 0:02:58.6]}
4. cxd5 {[%clk 0:03:01.5]} 4... cxd4 {[%clk 0:02:58.2]} 5. Qa4+ {[%clk
0:03:01.7]} 5... Bd7 {[%clk 0:02:58.2]} 6. Qxd4 {[%clk 0:03:01.8]} 6... exd5
{[%clk 0:02:58.2]} 7. Qxd5 {[%clk 0:03:02.1]} 7... Nf6 {[%clk 0:02:58.4]} 8. Qb3
{[%clk 0:03:02.3]} 8... Na6 {[%clk 0:02:58.3]} 9. Nf3 {[%clk 0:03:01.3]} 9...
Nc5 {[%clk 0:02:57.5]} 10. Qc2 {[%clk 0:02:58.6]} 10... Rc8 {[%clk 0:02:55.5]}
11. e3 {[%clk 0:02:55.9]} 11... Nce4 {[%clk 0:02:44.7]} 12. Bd2 {[%clk
0:02:52.9]} 12... Bb4 {[%clk 0:02:37.3]} 13. Bd3 {[%clk 0:02:52.3]} 13... Nxd2
{[%clk 0:02:35.2]} 14. Nxd2 {[%clk 0:02:48]} 14... Nd5 {[%clk 0:01:59.4]} 15.
Qb3 {[%clk 0:02:48]} 15... Bxc3 {[%clk 0:01:46.8]} 16. bxc3 {[%clk 0:02:48.2]}
16... Nxc3 {[%clk 0:01:38.9]} 17. Qxb7 {[%clk 0:02:06.2]} 17... Bc6 {[%clk
0:01:09.8]} 18. Qa6 {[%clk 0:02:05.9]} 18... O-O {[%clk 0:01:08]} 19. O-O {[%clk
0:01:42.8]} 19... Qg5 {[%clk 0:01:03.5]} 20. g3 {[%clk 0:01:31.9]} 20... Rfd8
{[%clk 0:01:00.1]} 21. Bc4 {[%clk 0:01:08.8]} 21... Rc7 {[%clk 0:00:43.8]} 22.
Bxf7+ {[%clk 0:00:53.4]} 22... Kxf7 {[%clk 0:00:35]} 23. Qc4+ {[%clk 0:00:47.5]}
23... Qd5 {[%clk 0:00:34.3]} 24. Qxc3 {[%clk 0:00:46.4]} 24... Qg2# {[%clk
0:00:34.3]} 0-1

[Event "Late-Titled-Tuesday-Blitz-March-12-2024"]
[Site "Chess.com"]
[Date "2024.03.12"]
[Round "8"]
[White "Caisachess"]
[Black "HaryKane"]
[Result "0-1"]
[WhiteElo "2391"]
[BlackElo "2604"]
[TimeControl "180+1"]
[EndTime "15:25:22 PDT"]
[Termination "HaryKane won by resignation"]

1. e4 {[%clk 0:03:00.9]} 1... e6 {[%clk 0:02:58.4]} 2. d4 {[%clk 0:03:00.7]}
2... d5 {[%clk 0:02:38.6]} 3. Bd3 {[%clk 0:03:00.5]} 3... dxe4 {[%clk
0:02:13.5]} 4. Bxe4 {[%clk 0:03:01.4]} 4... Nd7 {[%clk 0:02:08.4]} 5. Ne2 {[%clk
0:02:56.3]} 5... Ngf6 {[%clk 0:02:05.6]} 6. Bf3 {[%clk 0:02:56.3]} 6... c5
{[%clk 0:02:05.8]} 7. Be3 {[%clk 0:02:55.3]} 7... cxd4 {[%clk 0:02:02.6]} 8.
Nxd4 {[%clk 0:02:54.9]} 8... Be7 {[%clk 0:01:59.8]} 9. Nc3 {[%clk 0:02:55.4]}
9... O-O {[%clk 0:01:59.2]} 10. g3 {[%clk 0:02:51.1]} 10... Ne5 {[%clk
0:01:55.5]} 11. Bg2 {[%clk 0:02:51.2]} 11... Nc4 {[%clk 0:01:54.3]} 12. Bc1
{[%clk 0:02:50.6]} 12... Bc5 {[%clk 0:01:47.7]} 13. Nb3 {[%clk 0:02:45.5]} 13...
Qxd1+ {[%clk 0:01:42.5]} 14. Nxd1 {[%clk 0:02:46.4]} 14... Bb6 {[%clk
0:01:42.2]} 15. O-O {[%clk 0:02:41.8]} 15... e5 {[%clk 0:01:42.3]} 16. Nd2
{[%clk 0:02:31.9]} 16... Nd6 {[%clk 0:01:36.2]} 17. Nc3 {[%clk 0:02:19.9]} 17...
Bf5 {[%clk 0:01:32]} 18. Nf3 {[%clk 0:02:16]} 18... Rfe8 {[%clk 0:01:23.1]} 19.
Ne1 {[%clk 0:01:58.9]} 19... Rac8 {[%clk 0:01:18.9]} 20. Be3 {[%clk 0:01:48.2]}
20... Bxe3 {[%clk 0:01:08.7]} 21. fxe3 {[%clk 0:01:49.1]} 21... Bg6 {[%clk
0:01:06.9]} 22. Rd1 {[%clk 0:01:47.8]} 22... Nc4 {[%clk 0:01:00.4]} 23. Bxb7
{[%clk 0:01:45.1]} 23... Rc7 {[%clk 0:00:57.1]} 24. Nd5 {[%clk 0:01:33.7]} 24...
Rxb7 {[%clk 0:00:43.8]} 25. Rxf6 {[%clk 0:01:32.4]} 25... gxf6 {[%clk
0:00:36.6]} 26. Nxf6+ {[%clk 0:01:31.2]} 26... Kf8 {[%clk 0:00:37.1]} 27. Nxe8
{[%clk 0:01:25.4]} 27... Kxe8 {[%clk 0:00:38]} 28. b3 {[%clk 0:01:23.5]} 28...
Nxe3 {[%clk 0:00:37.5]} 29. Rd6 {[%clk 0:01:22.5]} 29... Nxc2 {[%clk 0:00:34.7]}
30. Nf3 {[%clk 0:01:22]} 30... Re7 {[%clk 0:00:28.5]} 31. Rc6 {[%clk 0:01:18.2]}
31... Nd4 {[%clk 0:00:27]} 32. Nxd4 {[%clk 0:01:08.3]} 32... exd4 {[%clk
0:00:27.9]} 0-1

[Event "Late-Titled-Tuesday-Blitz-March-12-2024"]
[Site "Chess.com"]
[Date "2024.03.12"]
[Round "8"]
[White "BlueWizzard"]
[Black "Alexei_Gubajdullin"]
[Result "1-0"]
[WhiteElo "2876"]
[BlackElo "2653"]
[TimeControl "180+1"]
[EndTime "15:25:26 PDT"]
[Termination "BlueWizzard won by resignation"]

1. d4 {[%clk 0:03:00.9]} 1... Nf6 {[%clk 0:02:34.8]} 2. Nc3 {[%clk 0:03:00.4]}
2... g6 {[%clk 0:02:34.6]} 3. Bf4 {[%clk 0:02:57.2]} 3... Bg7 {[%clk 0:02:34.2]}
4. e4 {[%clk 0:02:57.2]} 4... d6 {[%clk 0:02:33.7]} 5. Be2 {[%clk 0:02:56.9]}
5... O-O {[%clk 0:02:33.6]} 6. h4 {[%clk 0:02:56.6]} 6... h5 {[%clk 0:02:30.7]}
7. e5 {[%clk 0:02:54]} 7... Ng4 {[%clk 0:02:27.9]} 8. Bxg4 {[%clk 0:02:53.3]}
8... Bxg4 {[%clk 0:02:27.5]} 9. f3 {[%clk 0:02:53.9]} 9... Bd7 {[%clk
0:02:22.4]} 10. g4 {[%clk 0:02:48.7]} 10... hxg4 {[%clk 0:02:18.3]} 11. h5
{[%clk 0:02:48]} 11... gxh5 {[%clk 0:02:05.7]} 12. Rxh5 {[%clk 0:02:46.5]} 12...
Qe8 {[%clk 0:02:02.4]} 13. fxg4 {[%clk 0:02:35.4]} 13... f6 {[%clk 0:01:59]} 14.
Qd3 {[%clk 0:02:21.8]} 14... f5 {[%clk 0:01:53.4]} 15. Rg5 {[%clk 0:02:17.9]}
15... Nc6 {[%clk 0:01:44.2]} 16. O-O-O {[%clk 0:02:10.3]} 16... fxg4 {[%clk
0:01:35.1]} 17. Nge2 {[%clk 0:02:10.2]} 17... Nb4 {[%clk 0:00:54.2]} 18. Qc4+
{[%clk 0:02:07.1]} 18... e6 {[%clk 0:00:48.7]} 19. Qxb4 {[%clk 0:02:04.1]} 19...
Rf5 {[%clk 0:00:45.5]} 20. Rxg4 {[%clk 0:02:02.1]} 20... Qh5 {[%clk 0:00:43.3]}
21. Rdg1 {[%clk 0:01:56.6]} 21... Rf7 {[%clk 0:00:42.7]} 22. Ne4 {[%clk
0:01:51.4]} 22... Kh8 {[%clk 0:00:38]} 23. Qe1 {[%clk 0:01:48.6]} 23... Qf5
{[%clk 0:00:16.4]} 24. Qh4+ {[%clk 0:01:38]} 24... Kg8 {[%clk 0:00:15.4]} 25.
Bh6 {[%clk 0:01:30]} 25... Kf8 {[%clk 0:00:08.2]} 26. Bxg7+ {[%clk 0:01:25.8]}
26... Ke8 {[%clk 0:00:04.3]} 27. Qh8+ {[%clk 0:01:18.2]} 1-0